bitfinex/quotes_SOLUSD_20240620
["timestamp","ask_amount","ask_price","bid_price","bid_amount"]
[1718875553433,15.9509,137.61,137.55,7.09]
[1718875553618,15.9509,137.61,137.55,14.36]
[1718875553619,27.09,137.6,137.55,14.36]
[1718875553815,20.0,137.6,137.56,14.3593]
[1718875554043,15.9509,137.61,137.56,14.3593]
[1718875554044,23.0409,137.61,137.56,14.3593]
[1718875554944,23.0409,137.61,137.56,7.09]
[1718875555646,23.0409,137.61,137.55,7.2698]
[1718875555647,23.0409,137.61,137.55,7.09]
[1718875556444,7.09,137.6,137.54,7.2704]
[1718875556624,7.09,137.6,137.55,7.09]
[1718875556820,7.09,137.6,137.52,23.565]
[1718875557037,7.09,137.58,137.53,7.09]
[1718875557233,16.2909,137.61,137.52,7.09]
[1718875557234,7.09,137.57,137.52,7.09]
[1718875558339,16.2909,137.61,137.52,7.09]
[1718875558643,7.09,137.57,137.52,14.3616]
[1718875559021,7.09,137.58,137.53,7.09]
[1718875559533,7.09,137.58,137.52,7.2716]
[1718875559534,7.09,137.57,137.52,14.3616]
[1718875560039,7.09,137.58,137.53,14.361]
[1718875560820,7.09,137.58,137.53,7.09]
[1718875561225,7.09,137.58,137.49,34.0822]
[1718875561226,0.17,137.59,137.49,15.9002]
[1718875561458,7.09,137.56,137.5,7.09]
[1718875561651,7.09,137.55,137.5,7.09]
[1718875561946,7.09,137.55,137.46,15.27]
[1718875561947,7.09,137.51,137.45,7.275]
[1718875562148,7.09,137.5,137.44,7.2757]
[1718875562334,7.09,137.5,137.42,21.5713]
[1718875562335,7.09,137.5,137.43,7.2762]
[1718875562541,7.09,137.5,137.44,7.09]
[1718875562846,27.09,137.49,137.43,7.2764]
[1718875563033,7.09,137.48,137.43,7.09]
[1718875563436,27.09,137.49,137.43,14.3662]
[1718875563632,28.6294,137.48,137.38,15.2856]
[1718875563835,27.09,137.47,137.41,7.09]
[1718875564037,27.09,137.47,137.42,7.09]
[1718875564341,27.09,137.47,137.41,7.2771]
[1718875564342,20.0,137.47,137.44,7.09]
[1718875564557,20.0,137.47,137.43,7.09]
[1718875564760,27.09,137.47,137.38,33.4832]
[1718875564944,7.09,137.46,137.41,7.09]
[1718875565126,27.09,137.47,137.42,7.09]
[1718875565326,20.0,137.47,137.43,7.09]
[1718875565554,20.0,137.47,137.43,7.276]
[1718875566548,8.17054608,137.47,137.43,7.276]
[1718875566845,15.1945,137.48,137.43,7.276]
[1718875567156,15.323,137.51,137.44,7.2757]
[1718875567352,15.323,137.51,137.43,0.68]
[1718875567554,15.323,137.51,137.43,7.9563]
[1718875568062,15.323,137.51,137.44,7.2757]
[1718875568553,15.323,137.51,137.45,7.2753]
[1718875568762,15.323,137.51,137.46,7.2748]
[1718875569057,15.323,137.51,137.45,7.2752]
[1718875569656,15.323,137.51,137.43,7.276]
[1718875570047,15.323,137.51,137.42,7.2769]
[1718875570367,20.0,137.5,137.42,7.2769]
[1718875570570,15.6648,137.55,137.49,7.273]
[1718875570946,15.6648,137.55,137.5,7.2723]
[1718875571148,15.6648,137.55,137.51,7.2721]
[1718875571757,15.6648,137.55,137.48,7.4436]
[1718875571954,15.6648,137.55,137.48,7.6136]
[1718875572270,15.6648,137.55,137.49,7.2731]
[1718875574170,15.6648,137.55,137.51,7.2718]
[1718875574740,15.6648,137.55,137.48,17.0654]
[1718875575047,15.6648,137.55,137.5,7.2726]
[1718875575542,15.6648,137.55,137.49,7.273]
[1718875576277,22.2763,137.59,137.48,0.34]
[1718875576573,20.0,137.58,137.51,7.2721]
[1718875576755,20.0,137.58,137.5,0.17]
[1718875576756,20.0,137.58,137.5,7.4425]
[1718875577265,20.0,137.58,137.5,7.2723]
[1718875578063,15.5384,137.57,137.46,18.1858]
[1718875578278,20.0,137.56,137.48,7.2737]
[1718875578571,20.0,137.56,137.49,7.2732]
[1718875579671,20.0,137.56,137.48,7.2736]
[1718875580757,20.0,137.56,137.49,7.2732]
[1718875581364,20.0,137.56,137.48,7.2736]
[1718875583173,15.1984,137.57,137.46,0.17]
[1718875583349,15.1984,137.57,137.5,7.2726]
[1718875584370,15.1984,137.57,137.51,7.2721]
[1718875584569,15.1984,137.57,137.49,7.443]
[1718875584870,15.1984,137.57,137.5,0.17]
[1718875585080,15.1984,137.57,137.5,0.51]
[1718875585377,15.1984,137.57,137.5,7.7824]
[1718875585547,15.1984,137.57,137.51,7.272]
[1718875586181,15.1984,137.57,137.51,7.2721]
[1718875586766,15.1984,137.57,137.51,7.2718]
[1718875588478,15.1984,137.57,137.52,7.2715]
[1718875588678,15.1984,137.57,137.51,7.2719]
[1718875589356,15.1984,137.57,137.53,7.12]
[1718875590381,20.0,137.56,137.45,28.9534]
[1718875590567,20.0,137.56,137.47,7.12]
[1718875590568,7.12,137.53,137.47,7.12]
[1718875590763,7.12,137.52,137.47,7.12]
[1718875590968,23.1327,137.52,137.42,6.2203]
[1718875591164,23.1327,137.52,137.47,7.12]
[1718875591481,16.0127,137.52,137.45,7.2753]
[1718875591977,16.0127,137.52,137.43,7.2759]
[1718875592477,16.0127,137.52,137.44,7.2758]
[1718875592884,16.0127,137.52,137.46,7.2747]
[1718875593179,16.0127,137.52,137.47,7.2742]
[1718875593781,16.0127,137.52,137.46,7.4446]
[1718875594284,16.0127,137.52,137.43,39.561]
[1718875594457,16.0127,137.52,137.45,7.2749]
[1718875596660,16.0127,137.52,137.46,7.2747]
[1718875596883,16.0127,137.52,137.47,7.2742]
[1718875597387,16.0127,137.52,137.46,7.2747]
[1718875597973,16.0127,137.52,137.44,0.17]
[1718875597974,16.0127,137.52,137.45,7.2751]
[1718875598367,16.0127,137.52,137.46,7.2748]
[1718875598578,16.0127,137.52,137.47,7.2742]
[1718875598890,16.0127,137.52,137.46,7.2747]
[1718875599557,16.0127,137.52,137.44,0.34]
[1718875599558,16.0127,137.52,137.47,7.2742]
[1718875600075,16.0127,137.52,137.45,18.3582]
[1718875600277,16.0127,137.52,137.49,7.2731]
[1718875600590,16.0127,137.52,137.47,7.2738]
[1718875600971,16.0127,137.52,137.48,7.2736]
[1718875603795,16.0127,137.52,137.47,7.2741]
[1718875604285,16.0127,137.52,137.46,7.7846]
[1718875605091,16.0127,137.52,137.46,7.6146]
[1718875605570,16.0127,137.52,137.46,7.4446]
[1718875606390,16.0127,137.52,137.47,7.2741]
[1718875607098,16.0127,137.52,137.46,7.4446]
[1718875607299,16.0127,137.52,137.45,7.2752]
[1718875608206,16.0127,137.52,137.46,7.2748]
[1718875610394,16.0127,137.52,137.45,7.2751]
[1718875610602,16.0127,137.52,137.44,7.2758]
[1718875611097,16.0127,137.52,137.45,7.2752]
[1718875611409,23.1427,137.52,137.46,7.13]
[1718875614107,16.0127,137.52,137.42,7.4469]
[1718875614389,7.13,137.49,137.44,7.13]
[1718875614571,7.13,137.49,137.44,14.4058]
[1718875614773,7.13,137.49,137.44,7.13]
[1718875615482,7.13,137.5,137.45,7.13]
[1718875620100,7.13,137.5,137.44,7.2758]
[1718875620399,7.13,137.5,137.45,7.13]
[1718875621092,7.13,137.49,137.44,14.4058]
[1718875621797,7.13,137.5,137.45,7.13]
[1718875621995,16.0127,137.52,137.46,0.17]
[1718875622197,16.0127,137.52,137.48,7.13]
[1718875622392,16.0127,137.52,137.49,7.2729]
[1718875622599,16.0127,137.52,137.49,7.13]
[1718875623086,16.0127,137.52,137.48,7.13]
[1718875627498,16.0127,137.52,137.45,0.17]
[1718875627879,16.0127,137.52,137.46,7.13]
[1718875628897,16.0127,137.52,137.45,7.445]
[1718875629210,7.13,137.5,137.44,7.4456]
[1718875629390,7.13,137.5,137.45,7.13]
[1718875629590,7.13,137.5,137.45,14.4052]
[1718875630318,7.13,137.5,137.46,7.2748]
[1718875630619,23.1427,137.52,137.46,14.4048]
[1718875630820,23.1427,137.52,137.41,28.52]
[1718875630821,16.0127,137.52,137.48,14.4037]
[1718875631007,16.0127,137.52,137.49,7.13]
[1718875631824,16.0127,137.52,137.48,7.13]
[1718875633191,16.0127,137.52,137.48,14.4035]
[1718875633392,16.0127,137.52,137.48,7.13]
[1718875637418,6.3862,137.54,137.51,7.13]
[1718875637627,15.7331,137.55,137.51,7.13]
[1718875638000,15.7331,137.55,137.51,14.4021]
[1718875638214,15.7331,137.55,137.52,7.13]
[1718875638722,15.7331,137.55,137.51,7.13]
[1718875640624,22.8631,137.55,137.5,7.13]
[1718875641613,22.8631,137.55,137.5,14.4026]
[1718875642606,15.7331,137.55,137.51,7.13]
[1718875643013,15.7331,137.55,137.51,14.4019]
[1718875643230,15.7331,137.55,137.52,14.4015]
[1718875643712,15.7331,137.55,137.53,7.13]
[1718875644111,22.6821,137.58,137.54,7.13]
[1718875644311,22.6821,137.58,137.55,7.13]
[1718875645319,6.1751,137.61,137.55,18.175]
[1718875645530,16.494,137.62,137.58,7.13]
[1718875645829,16.494,137.62,137.59,7.13]
[1718875647003,16.494,137.62,137.58,7.13]
[1718875647205,23.624,137.62,137.57,7.13]
[1718875647606,16.494,137.62,137.58,7.13]
[1718875648635,16.494,137.62,137.5,18.1806]
[1718875648815,7.13,137.59,137.51,20.0]
[1718875649015,7.13,137.59,137.54,7.13]
[1718875649224,6.5394,137.6,137.54,7.13]
[1718875649415,7.13,137.59,137.52,7.2715]
[1718875649734,7.13,137.58,137.53,7.13]
[1718875650438,7.13,137.56,137.48,7.2733]
[1718875650604,7.13,137.55,137.49,7.2732]
[1718875650933,7.13,137.55,137.5,7.13]
[1718875651430,15.2794,137.57,137.45,18.1872]
[1718875651640,15.2794,137.57,137.46,20.0]
[1718875651835,15.2794,137.57,137.47,18.1857]
[1718875652030,15.2794,137.57,137.51,7.2721]
[1718875652227,15.2794,137.57,137.49,7.273]
[1718875652434,15.2794,137.57,137.48,7.2736]
[1718875653436,15.2794,137.57,137.49,7.2732]
[1718875654340,15.2794,137.57,137.48,7.4436]
[1718875654542,15.2794,137.57,137.47,21.54]
[1718875654543,0.17,137.56,137.47,0.17]
[1718875654721,0.17,137.56,137.48,7.2737]
[1718875654925,0.17,137.56,137.49,7.2732]
[1718875655234,15.2794,137.57,137.48,7.2735]
[1718875655439,0.17,137.56,137.49,7.2732]
[1718875655634,15.2794,137.57,137.49,7.2732]
[1718875656027,15.2794,137.57,137.48,7.4435]
[1718875656640,0.17,137.56,137.48,7.2735]
[1718875657835,0.17,137.56,137.44,7.2757]
[1718875657836,15.6369,137.54,137.44,7.2757]
[1718875658346,20.17,137.53,137.45,7.2753]
[1718875660048,0.34,137.52,137.45,7.2753]
[1718875660549,0.34,137.52,137.44,7.2756]
[1718875660926,0.34,137.52,137.45,7.2752]
[1718875661521,0.34,137.52,137.42,18.1921]
[1718875661522,20.17,137.53,137.44,7.2757]
[1718875661724,20.17,137.53,137.45,7.2752]
[1718875661925,20.17,137.53,137.44,7.2757]
[1718875663942,0.34,137.52,137.44,7.2757]
[1718875667139,15.6369,137.54,137.48,7.2734]
[1718875667462,15.6369,137.54,137.47,7.274]
[1718875669636,20.0,137.53,137.47,7.274]
[1718875672454,20.0,137.53,137.46,7.2746]
[1718875672652,20.0,137.53,137.47,0.17]
[1718875673567,27.12,137.53,137.48,7.12]
[1718875675274,20.0,137.53,137.48,7.12]
[1718875675452,15.6369,137.54,137.5,7.12]
[1718875675645,15.6369,137.54,137.51,7.12]
[1718875675843,15.6369,137.54,137.52,7.12]
[1718875677366,15.9832,137.58,137.52,7.12]
[1718875677576,15.9832,137.58,137.54,7.12]
[1718875678479,15.9832,137.58,137.55,7.29]
[1718875678765,15.9832,137.58,137.56,7.12]
[1718875678970,15.9832,137.58,137.55,7.12]
[1718875680064,15.9832,137.58,137.53,0.17]
[1718875680246,15.9832,137.58,137.55,7.12]
[1718875680749,7.12,137.6,137.55,7.12]
[1718875680949,7.12,137.61,137.56,7.12]
[1718875681162,20.0,137.6,137.56,7.12]
[1718875681762,20.0,137.6,137.52,7.4411]
[1718875681966,20.0,137.6,137.52,7.4415]
[1718875682272,20.0,137.61,137.54,7.12]
[1718875682445,7.12,137.59,137.54,7.12]
[1718875682868,7.12,137.59,137.52,7.4415]
[1718875683075,7.12,137.59,137.52,0.17]
[1718875683258,16.4981,137.6,137.51,0.51]
[1718875683454,7.12,137.57,137.51,7.46]
[1718875683867,7.12,137.57,137.51,7.12]
[1718875684056,7.12,137.56,137.51,7.12]
[1718875684455,7.12,137.57,137.51,7.12]
[1718875684670,7.12,137.57,137.5,0.17]
[1718875684671,6.5806,137.58,137.52,7.12]
[1718875684971,6.5806,137.58,137.54,7.12]
[1718875685671,6.5806,137.58,137.53,7.12]
[1718875688054,13.7006,137.58,137.53,7.12]
[1718875689080,13.7006,137.58,137.45,6.0503]
[1718875689081,6.5806,137.58,137.45,6.0503]
[1718875689373,7.12,137.55,137.49,7.2729]
[1718875689570,35.9136,137.57,137.5,7.12]
[1718875689571,7.12,137.56,137.5,7.12]
[1718875690173,7.12,137.56,137.5,14.3927]
[1718875690379,7.12,137.56,137.51,7.12]
[1718875692576,35.9136,137.57,137.51,7.12]
[1718875692753,7.12,137.56,137.51,7.12]
[1718875695060,35.9136,137.57,137.52,7.12]
[1718875695271,35.9136,137.57,137.53,7.12]
[1718875696363,35.9136,137.57,137.5,7.4424]
[1718875696560,35.9136,137.57,137.52,7.12]
[1718875697281,35.9136,137.57,137.51,0.51]
[1718875697480,35.9136,137.57,137.52,7.12]
[1718875698179,15.9136,137.57,137.52,7.12]
[1718875699182,15.9136,137.57,137.53,7.12]
[1718875700066,15.9136,137.57,137.52,7.12]
[1718875700371,15.9136,137.57,137.53,7.12]
[1718875701080,15.9136,137.57,137.55,7.12]
[1718875701452,15.9136,137.57,137.56,7.12]
[1718875701850,16.1784,137.6,137.56,7.12]
[1718875702358,16.1784,137.6,137.58,7.12]
[1718875702580,6.447,137.62,137.58,7.12]
[1718875705490,13.567,137.62,137.58,7.12]
[1718875705683,13.567,137.62,137.57,7.12]
[1718875707977,7.12,137.6,137.53,7.2709]
[1718875708291,6.447,137.62,137.52,7.2714]
[1718875708292,7.12,137.59,137.52,7.2714]
[1718875708463,7.12,137.59,137.54,7.12]
[1718875708665,13.567,137.62,137.53,7.12]
[1718875708864,7.12,137.58,137.53,7.12]
[1718875709981,7.12,137.58,137.53,14.391]
[1718875710182,7.12,137.59,137.54,7.12]
[1718875711484,20.0,137.61,137.53,7.12]
[1718875711691,7.12,137.58,137.53,7.12]
[1718875713295,7.12,137.58,137.53,14.3908]
[1718875713591,20.0,137.61,137.55,14.3896]
[1718875713794,20.0,137.61,137.55,7.12]
[1718875713973,7.12,137.6,137.55,7.12]
[1718875714171,20.0,137.59,137.55,7.12]
[1718875714370,27.12,137.59,137.54,14.3905]
[1718875714875,7.12,137.6,137.55,14.3897]
[1718875715904,7.12,137.6,137.55,7.12]
[1718875716189,6.447,137.62,137.55,14.39]
[1718875716383,20.0,137.61,137.56,14.5592]
[1718875716576,20.0,137.61,137.53,0.17]
[1718875716577,15.2019,137.63,137.54,16.0329]
[1718875716797,20.0,137.62,137.58,7.12]
[1718875717894,15.0505,137.67,137.58,0.17]
[1718875718074,15.0505,137.67,137.58,7.12]
[1718875718275,7.12,137.63,137.58,7.12]
[1718875718699,7.12,137.64,137.58,7.12]
[1718875718990,7.12,137.64,137.57,0.17]
[1718875719173,7.12,137.62,137.57,7.12]
[1718875719375,7.12,137.61,137.55,6.3753]
[1718875719595,7.12,137.6,137.55,13.4953]
[1718875719782,0.17,137.66,137.55,13.4953]
[1718875719978,65.68,137.66,137.55,7.12]
[1718875720184,7.12,137.6,137.55,7.12]
[1718875720385,7.12,137.6,137.54,16.0329]
[1718875720571,7.12,137.6,137.54,14.3904]
[1718875720972,7.12,137.6,137.55,7.12]
[1718875721668,7.12,137.6,137.55,14.3899]
[1718875722690,16.5069,137.62,137.52,6.3993]
[1718875722691,16.5069,137.62,137.56,14.3895]
[1718875722871,23.6269,137.62,137.57,7.12]
[1718875723072,16.5069,137.62,137.57,7.12]
[1718875723383,7.12,137.63,137.58,7.12]
[1718875724589,7.12,137.63,137.57,14.3887]
[1718875724774,7.12,137.63,137.58,7.12]
[1718875724973,7.12,137.63,137.58,14.3884]
[1718875725285,7.12,137.63,137.58,7.12]
[1718875725486,7.12,137.63,137.57,7.2688]
[1718875726291,7.12,137.64,137.58,0.17]
[1718875727489,7.12,137.64,137.58,7.4383]
[1718875727807,7.12,137.64,137.58,0.17]
[1718875728189,7.12,137.63,137.58,0.17]
[1718875728499,35.8435,137.66,137.58,7.29]
[1718875728679,42.9635,137.66,137.6,7.12]
[1718875729085,7.12,137.65,137.6,7.12]
[1718875729599,7.12,137.65,137.59,14.5576]
[1718875730390,7.12,137.64,137.58,0.17]
[1718875730705,7.12,137.63,137.58,7.29]
[1718875731102,7.12,137.63,137.58,0.17]
[1718875731315,7.12,137.63,137.58,7.29]
[1718875731801,7.12,137.63,137.58,14.5583]
[1718875732003,7.12,137.64,137.59,7.46]
[1718875732595,7.12,137.64,137.58,0.17]
[1718875732801,7.12,137.62,137.57,6.4206]
[1718875733099,7.12,137.61,137.57,6.4206]
[1718875738081,7.12,137.61,137.56,14.3894]
[1718875738480,7.12,137.61,137.56,7.12]
[1718875738705,7.12,137.61,137.56,14.3895]
[1718875739387,7.12,137.61,137.57,7.2689]
[1718875740105,7.12,137.62,137.57,7.2689]
[1718875740311,0.17,137.65,137.57,7.2689]
[1718875740495,7.12,137.62,137.56,7.2693]
[1718875740697,7.12,137.62,137.56,14.3893]
[1718875742300,7.12,137.62,137.53,30.3601]
[1718875742505,7.12,137.62,137.53,23.0892]
[1718875742506,35.3327,137.61,137.53,23.0892]
[1718875742700,7.12,137.57,137.53,6.6532]
[1718875742904,35.3327,137.61,137.53,13.7732]
[1718875743093,7.12,137.6,137.55,7.12]
[1718875743286,27.12,137.59,137.53,13.9241]
[1718875743498,27.12,137.59,137.53,21.0441]
[1718875743691,27.12,137.59,137.53,13.9241]
[1718875743990,27.12,137.59,137.53,21.0441]
[1718875744289,27.12,137.59,137.54,7.12]
[1718875744504,20.0,137.59,137.54,7.12]
[1718875744698,20.0,137.59,137.55,7.12]
[1718875744907,7.12,137.6,137.55,7.12]
[1718875745084,7.12,137.6,137.54,7.12]
[1718875745286,7.12,137.59,137.53,13.9241]
[1718875745514,7.12,137.59,137.54,7.12]
[1718875745692,15.3327,137.61,137.54,7.12]
[1718875745999,27.12,137.6,137.55,7.12]
[1718875747114,7.12,137.59,137.54,7.29]
[1718875747688,7.12,137.59,137.54,7.12]
[1718875749807,7.12,137.58,137.52,14.7315]
[1718875750118,7.12,137.58,137.5,34.3959]
[1718875750119,20.0,137.6,137.5,16.2144]
[1718875750287,0.17,137.59,137.5,16.2144]
[1718875750487,7.12,137.55,137.5,7.12]
[1718875751205,7.12,137.54,137.5,7.12]
[1718875751412,7.12,137.54,137.49,13.6292]
[1718875751601,7.12,137.55,137.49,13.6292]
[1718875751821,23.0726,137.55,137.47,22.9774]
[1718875752036,7.12,137.51,137.45,6.5053]
[1718875752232,7.12,137.5,137.45,13.6253]
[1718875752526,7.12,137.51,137.46,7.12]
[1718875752707,7.12,137.52,137.45,13.7806]
[1718875752906,0.17,137.53,137.45,13.7806]
[1718875752907,27.12,137.51,137.45,13.7806]
[1718875753115,27.12,137.51,137.46,7.12]
[1718875755320,27.12,137.51,137.45,6.5053]
[1718875755489,27.12,137.51,137.45,13.6253]
[1718875756417,27.12,137.51,137.45,6.5053]
[1718875756611,7.12,137.5,137.45,13.6253]
[1718875756808,7.12,137.5,137.45,20.9006]
[1718875756997,27.12,137.51,137.45,20.9006]
[1718875757197,27.12,137.51,137.45,6.5053]
[1718875757421,27.12,137.51,137.46,7.12]
[1718875758095,27.12,137.51,137.45,13.7806]
[1718875758293,27.12,137.51,137.46,7.12]
[1718875758720,27.12,137.51,137.45,13.7806]
[1718875758917,20.0,137.51,137.46,14.3947]
[1718875759220,7.12,137.51,137.46,14.3947]
[1718875759408,7.12,137.51,137.46,0.17]
[1718875759721,20.0,137.54,137.47,7.12]
[1718875759926,20.0,137.54,137.46,7.7846]
[1718875760098,20.0,137.54,137.48,7.12]
[1718875760099,7.12,137.53,137.48,7.12]
[1718875760421,20.0,137.52,137.48,7.12]
[1718875760607,20.0,137.52,137.46,7.7846]
[1718875760798,20.0,137.52,137.48,7.12]
[1718875761016,20.0,137.52,137.46,0.51]
[1718875761225,20.0,137.52,137.47,7.12]
[1718875761226,27.12,137.52,137.47,7.12]
[1718875761523,27.12,137.52,137.44,0.17]
[1718875761524,7.12,137.5,137.44,0.34]
[1718875761697,7.12,137.49,137.44,7.46]
[1718875762212,7.12,137.49,137.42,6.6418]
[1718875762406,7.12,137.49,137.39,22.733]
[1718875762407,7.12,137.46,137.39,22.733]
[1718875762711,27.12,137.48,137.42,7.12]
[1718875763300,27.12,137.48,137.39,22.733]
[1718875763301,7.12,137.45,137.39,22.733]
[1718875763497,7.12,137.45,137.4,7.12]
[1718875763731,20.0,137.48,137.41,7.12]
[1718875763939,16.0831,137.52,137.45,7.275]
[1718875764131,20.0,137.51,137.47,7.12]
[1718875764431,20.0,137.51,137.45,7.12]
[1718875765009,20.0,137.51,137.47,7.12]
[1718875765211,20.0,137.51,137.47,7.4442]
[1718875765413,27.12,137.53,137.47,0.17]
[1718875765603,27.12,137.53,137.48,7.12]
[1718875765801,7.12,137.52,137.47,7.12]
[1718875766319,16.0831,137.56,137.47,6.4291]
[1718875766524,7.12,137.58,137.52,7.12]
[1718875766738,7.12,137.58,137.53,7.12]
[1718875767096,7.12,137.58,137.52,7.12]
[1718875767326,7.12,137.57,137.51,7.12]
[1718875767538,7.12,137.57,137.5,7.4426]
[1718875767539,22.5297,137.6,137.53,7.12]
[1718875767700,22.5297,137.6,137.54,7.12]
[1718875767701,27.12,137.59,137.54,7.12]
[1718875767900,20.0,137.59,137.54,7.12]
[1718875768236,20.0,137.59,137.5,0.51]
[1718875768237,20.0,137.59,137.48,20.0]
[1718875768403,7.12,137.56,137.5,7.12]
[1718875768601,20.0,137.59,137.52,7.12]
[1718875768807,20.0,137.59,137.53,7.12]
[1718875768808,27.12,137.59,137.53,7.12]
[1718875769107,27.12,137.59,137.51,7.7818]
[1718875769422,20.0,137.59,137.51,0.51]
[1718875769728,20.0,137.59,137.51,7.7821]
[1718875770227,20.0,137.59,137.52,7.2716]
[1718875770599,20.0,137.59,137.51,7.782]
[1718875770907,20.0,137.59,137.5,0.34]
[1718875772025,20.0,137.59,137.5,7.6123]
[1718875772225,20.0,137.59,137.51,7.272]
[1718875772929,20.0,137.59,137.5,7.6125]
[1718875773109,20.0,137.59,137.51,7.2721]
[1718875773302,20.0,137.59,137.5,0.34]
[1718875773509,16.0831,137.6,137.52,0.17]
[1718875773824,16.0831,137.6,137.55,7.44]
[1718875774012,16.0831,137.6,137.55,0.17]
[1718875774408,16.0831,137.6,137.55,7.44]
[1718875775632,16.0831,137.6,137.55,0.17]
[1718875776109,11.88783173,137.63,137.55,0.17]
[1718875776307,15.2005,137.64,137.57,7.2686]
[1718875776813,15.2005,137.64,137.57,0.17]
[1718875777715,20.0,137.63,137.57,7.439]
[1718875778719,20.0,137.63,137.57,0.17]
[1718875778928,15.2005,137.64,137.57,0.34]
[1718875779121,15.2005,137.64,137.58,7.6084]
[1718875779325,15.2005,137.64,137.58,0.34]
[1718875779935,6.43,137.66,137.58,7.6083]
[1718875780246,20.0,137.65,137.58,7.6083]
[1718875780543,20.0,137.65,137.58,23.3935]
[1718875780730,20.0,137.66,137.59,0.34]
[1718875781241,20.0,137.66,137.61,7.2668]
[1718875781421,20.0,137.66,137.59,0.34]
[1718875781742,20.0,137.66,137.59,7.6078]
[1718875781946,20.0,137.66,137.6,0.51]
[1718875782126,20.0,137.66,137.6,0.17]
[1718875782326,20.0,137.66,137.59,0.51]
[1718875782823,20.0,137.66,137.6,0.17]
[1718875783839,20.0,137.66,137.58,15.7852]
[1718875784942,20.0,137.66,137.58,0.17]
[1718875786448,20.0,137.66,137.58,0.34]
[1718875786632,20.0,137.66,137.58,0.17]
[1718875789433,7.11,137.64,137.59,7.11]
[1718875789631,20.0,137.63,137.59,7.11]
[1718875790333,20.0,137.63,137.57,0.51]
[1718875790539,20.0,137.63,137.59,7.11]
[1718875792053,20.0,137.64,137.58,7.2684]
[1718875792239,20.0,137.64,137.6,7.11]
[1718875793232,20.0,137.64,137.59,7.11]
[1718875793640,27.11,137.64,137.59,7.11]
[1718875794655,27.11,137.64,137.58,7.11]
[1718875795660,27.11,137.64,137.59,7.11]
[1718875795833,20.0,137.64,137.59,7.11]
[1718875796038,27.11,137.66,137.61,7.11]
[1718875798459,7.11,137.65,137.6,7.11]
[1718875800865,20.0,137.66,137.6,7.11]